bitfinex/quotes_ETHUSD_20250324
["timestamp","ask_amount","ask_price","bid_price","bid_amount"]
[1742826472589,6.0799959,2092.4,2092.2,9.55894]
[1742826472805,6.0799959,2092.4,2092.2,4.77942]
[1742826473193,6.0799959,2092.4,2092.1,5.262]
[1742826473392,6.0799959,2092.4,2092.1,10.04188]
[1742826474525,6.0799959,2092.4,2092.2,4.77964]
[1742826474731,6.0799959,2092.4,2092.1,10.04178]
[1742826474893,6.0799959,2092.4,2092.1,14.82156]
[1742826475224,6.0799959,2092.4,2092.1,5.262]
[1742826475523,10.8593459,2092.4,2092.1,5.262]
[1742826475693,12.51876219,2092.4,2092.1,5.262]
[1742826476093,10.8595459,2092.3,2091.8,4.78044]
[1742826476293,4.77971,2092.2,2091.9,5.234]
[1742826476594,10.8595459,2092.3,2092.0,5.232]
[1742826476793,12.24035212,2092.3,2092.0,5.232]
[1742826476992,4.77983,2092.2,2092.0,5.232]
[1742826477210,0.122378,2092.1,2092.0,5.232]
[1742826477413,4.78034,2091.9,2091.7,25.275]
[1742826477627,6.00752139,2091.9,2091.8,5.228]
[1742826478308,4.78057,2091.8,2091.7,25.275]
[1742826478507,4.78057,2091.8,2091.7,30.5]
[1742826479028,13.8605659,2091.8,2091.7,30.5]
[1742826479204,15.97628463,2091.8,2091.7,5.225]
[1742826479406,17.6331981,2091.8,2091.7,5.225]
[1742826481734,17.6331981,2091.8,2091.1,25.27]
[1742826481903,4.78194,2091.2,2091.1,25.27]
[1742826482101,13.8619359,2091.2,2091.1,30.487]
[1742826482303,14.9472179,2091.2,2091.1,30.487]
[1742826482925,13.8619359,2091.2,2091.1,30.481]
[1742826483296,13.8619359,2091.2,2091.1,5.211]
[1742826483704,4.7828,2090.9,2090.5,30.05841]
[1742826483904,6.0799959,2090.8,2090.6,5.212]
[1742826484194,6.0799959,2090.8,2090.6,4.78312]
[1742826484401,6.0799959,2090.8,2090.7,5.209]
[1742826484847,6.0799959,2090.8,2090.7,4.78308]
[1742826485048,6.0799959,2090.8,2090.7,9.98808]
[1742826485697,6.0799959,2090.8,2090.7,4.78308]
[1742826485899,6.0799959,2090.8,2090.7,5.2]
[1742826486095,11.47084549,2090.8,2090.7,5.201]
[1742826486298,12.74774549,2090.8,2090.7,5.201]
[1742826486924,12.74774549,2090.8,2090.7,5.2]
[1742826487128,7.96489549,2090.8,2090.7,5.2]
[1742826487329,12.1397459,2090.8,2090.7,5.2]
[1742826487528,7.3568959,2090.8,2090.7,5.2]
[1742826487711,6.0799959,2090.8,2090.7,5.2]
[1742826488233,6.0799959,2090.8,2090.7,9.98308]
[1742826488433,6.0799959,2090.8,2090.7,4.660702]
[1742826489751,6.0799959,2090.8,2090.7,9.849702]
[1742826490105,6.0799959,2090.8,2090.7,11.130402]
[1742826490305,6.0799959,2091.1,2091.0,4.7824]
[1742826491301,6.0799959,2091.1,2090.9,4.78261]
[1742826491504,6.68799549,2091.1,2090.7,9.97205]
[1742826491712,11.47025549,2091.1,2090.7,9.97195]
[1742826492037,6.68799549,2091.1,2090.8,9.96977]
[1742826492539,11.47017549,2091.1,2090.8,9.96977]
[1742826492744,11.47017549,2091.1,2090.8,5.187]
[1742826493041,4.78303,2090.8,2090.5,26.4803]
[1742826493245,6.0799959,2090.7,2090.6,5.181]
[1742826493545,6.0799959,2090.7,2090.6,5.182]
[1742826494041,6.0799959,2090.7,2090.6,9.96531]
[1742826494411,6.0799959,2090.7,2090.6,4.78331]
[1742826494612,6.0799959,2090.7,2090.6,9.95731]
[1742826494812,6.0799959,2090.7,2090.6,5.174]
[1742826495011,6.0799959,2090.7,2090.6,9.95731]
[1742826495547,6.0799959,2090.7,2090.6,11.17301]
[1742826495919,6.0799959,2090.7,2090.6,5.99901]
[1742826496239,6.0799959,2090.7,2090.6,11.16601]
[1742826496624,10.8621859,2091.1,2090.7,4.78296]
[1742826496822,12.72660049,2091.1,2090.7,4.78296]
[1742826497040,7.94441049,2091.1,2090.8,4.78278]
[1742826497458,12.72664049,2091.1,2090.7,4.78306]
[1742826497816,4.7824,2091.0,2090.6,11.166]
[1742826498150,4.7824,2091.0,2090.6,9.9503]
[1742826498347,11.31587705,2091.0,2090.6,9.9503]
[1742826498538,6.53329705,2091.0,2090.6,9.95024]
[1742826498731,6.53329705,2091.0,2090.6,5.167]
[1742826498945,9.56554,2090.9,2090.6,5.167]
[1742826499144,4.78295,2090.8,2090.6,5.167]
[1742826499364,5.91460771,2090.8,2090.6,5.167]
[1742826499559,1.13165771,2090.8,2090.6,5.167]
[1742826499762,7.3179959,2091.1,2090.6,5.167]
[1742826499763,12.1002259,2091.1,2090.7,4.78299]
[1742826500082,6.0799959,2091.1,2090.8,4.78282]
[1742826500246,6.0799959,2091.1,2090.8,9.56551]
[1742826500561,6.0799959,2091.1,2090.9,4.78252]
[1742826500737,6.0799959,2091.1,2090.9,9.92745]
[1742826500941,6.0799959,2091.1,2091.0,4.7824]
[1742826501160,6.0799959,2091.1,2090.9,9.92745]
[1742826501534,6.0799959,2091.1,2090.9,5.145]
[1742826502031,6.0799959,2091.1,2090.9,9.92745]
[1742826502659,6.0799959,2091.1,2090.9,14.7099]
[1742826502868,6.0799959,2091.1,2090.9,9.92758]
[1742826503034,6.0799959,2091.1,2090.9,4.78258]
[1742826503369,6.0799959,2091.1,2091.0,5.131]
[1742826504363,6.0799959,2091.1,2091.0,11.1759]
[1742826504530,6.0799959,2091.1,2091.0,11.1679]
[1742826507430,10.8610159,2091.6,2091.1,4.78211]
[1742826507769,4.7815,2091.4,2091.0,11.16786]
[1742826508059,4.78132,2091.5,2091.0,11.1677]
[1742826508467,4.78132,2091.5,2091.1,4.78206]
[1742826508831,7.77257849,2091.6,2091.3,4.78156]
[1742826509031,6.0799959,2091.6,2091.4,5.102]
[1742826509459,10.8610559,2091.6,2091.4,5.102]
[1742826509833,4.78125,2091.5,2091.4,5.102]
[1742826511263,4.78365,2090.5,2090.1,4.79445]
[1742826511455,9.56731,2090.5,2090.1,0.01]
[1742826511652,4.78365,2090.5,2090.1,4.79435]
[1742826511973,10.8633259,2090.6,2090.2,30.429]
[1742826512188,10.8633259,2090.6,2090.1,0.01]
[1742826512189,4.2925,2090.5,2090.1,0.01]
[1742826512647,4.78423,2090.2,2090.1,0.01]
[1742826512988,4.78423,2090.2,2090.1,5.172]
[1742826513262,15.1567259,2090.2,2090.1,0.01]
[1742826513471,17.62918649,2090.2,2090.1,5.169]
[1742826513766,17.62918649,2090.2,2090.1,5.17]
[1742826513964,17.62918649,2090.2,2090.1,5.175]
[1742826514971,17.62918649,2090.2,2090.1,0.01]
[1742826515657,17.98427959,2090.2,2090.1,0.01]
[1742826516053,17.62918649,2090.2,2090.1,5.164]
[1742826516255,6.0799959,2090.2,2090.1,5.164]
[1742826516644,6.0799959,2090.2,2090.1,9.94846]
[1742826517754,6.0799959,2090.2,2090.1,35.23546]
[1742826522363,12.0655259,2090.2,2090.1,30.42]
[1742826522565,12.0655259,2090.2,2090.1,25.297]
[1742826522753,12.0655259,2090.2,2090.1,0.01]
[1742826522754,16.02756649,2090.2,2090.1,0.01]
[1742826522957,17.29826649,2090.2,2090.1,0.01]
[1742826523366,9.05584,2089.8,2089.7,0.55]
[1742826523544,15.1358359,2089.8,2089.7,0.55]
[1742826524075,15.1358359,2089.8,2089.7,5.682]
[1742826524246,17.60638749,2089.8,2089.7,5.682]
[1742826524649,17.60638749,2089.8,2089.7,0.55]
[1742826524848,17.60638749,2089.8,2089.7,5.681]
[1742826525486,17.60638749,2089.8,2089.7,0.55]
[1742826525656,17.60638749,2089.8,2089.7,5.678]
[1742826527074,17.60638749,2089.8,2089.7,0.55]
[1742826527388,17.60638749,2089.8,2089.7,5.671]
[1742826527584,17.60638749,2089.8,2089.7,0.55]
[1742826527789,17.60638749,2089.8,2089.7,5.669]
[1742826529071,8.55054749,2089.8,2089.7,5.669]
[1742826529258,10.8651359,2089.8,2089.7,5.669]
[1742826529455,6.0799959,2089.8,2089.7,5.669]
[1742826533089,6.0799959,2089.8,2089.7,10.45437]
[1742826534892,6.0799959,2089.8,2089.7,5.638]
[1742826535094,6.0799959,2089.8,2089.7,10.42337]
[1742826535319,6.0799959,2089.8,2089.7,5.33537]
[1742826535471,6.0799959,2089.8,2089.7,10.42837]
[1742826537393,6.0078,2090.2,2089.7,0.55]
[1742826537394,6.0799959,2090.1,2089.7,0.55]
[1742826537602,4.78478,2090.0,2089.7,0.55]
[1742826537768,4.78478,2090.0,2089.8,5.104]
[1742826537972,4.78491,2089.9,2089.8,5.104]
[1742826538282,6.34987859,2089.9,2089.8,5.109]
[1742826539301,11.13500859,2089.9,2089.7,0.55]
[1742826539501,11.13500859,2089.9,2089.8,5.11]
[1742826540298,6.34987859,2089.9,2089.8,5.11]
[1742826540502,12.42987449,2089.9,2089.8,5.11]
[1742826541202,4.78514,2089.8,2089.7,0.55]
[1742826541408,7.24702745,2089.8,2089.7,5.65]
[1742826541604,13.32702335,2089.8,2089.7,0.55]
[1742826541825,13.32702335,2089.8,2089.7,5.652]
[1742826542232,7.24702745,2089.8,2089.7,5.652]
[1742826543723,2.46188745,2089.8,2089.7,5.652]
[1742826543881,1.24298745,2089.8,2089.7,5.652]
[1742826544281,1.1676,2090.1,2089.8,4.78501]
[1742826544511,1.1676,2090.1,2089.7,5.652]
[1742826544512,5.95218,2090.1,2089.7,10.43734]
[1742826544907,5.95218,2090.1,2089.7,5.652]
[1742826545230,6.06324,2089.8,2089.7,5.657]
[1742826547628,4.78468,2090.0,2089.7,5.657]
[1742826547782,4.78514,2089.8,2089.7,5.657]
[1742826548506,4.78502,2089.9,2089.7,5.657]
[1742826548705,6.159362,2089.9,2089.7,5.657]
[1742826548887,4.78514,2089.8,2089.7,5.657]
[1742826549813,5.97254,2089.8,2089.7,5.657]
[1742826550228,8.97254,2089.8,2089.7,0.55]
[1742826550432,10.9642022,2089.8,2089.7,0.55]
[1742826550653,10.9642022,2089.8,2089.7,5.644]
[1742826550833,8.96977,2089.7,2089.6,0.34]
[1742826550983,9.07006,2089.4,2089.3,5.091]
[1742826552590,7.78606,2089.4,2089.3,5.091]
[1742826554350,6.06955,2088.8,2088.3,4.78846]
[1742826554492,7.78707,2089.0,2088.6,9.93378]
[1742826554844,3.0,2089.1,2088.7,5.147]
[1742826554990,9.57375,2089.1,2088.7,9.93447]
[1742826555190,4.78732,2088.9,2088.7,5.147]
[1742826555419,4.78705,2089.0,2088.7,5.147]
[1742826555918,9.57419,2089.0,2088.7,5.147]
[1742826556120,4.78685,2089.1,2088.7,9.93465]
[1742826556331,4.78698,2089.0,2088.7,5.147]
[1742826557218,4.78712,2089.0,2088.7,5.147]
[1742826557524,9.57426,2089.0,2088.7,5.147]
[1742826557817,4.78743,2088.8,2088.6,1.2411]
[1742826558123,4.78727,2088.9,2088.6,1.2411]
[1742826558322,9.57465,2088.9,2088.7,5.131]
[1742826558624,4.78727,2088.9,2088.7,5.131]
[1742826559003,4.78727,2088.9,2088.8,5.128]
[1742826559211,6.044436,2089.0,2088.8,5.128]
[1742826559513,1.257426,2089.0,2088.8,5.128]
[1742826560024,4.78707,2089.0,2088.8,5.128]
[1742826560422,9.5736,2089.1,2088.8,5.128]
[1742826560739,4.78675,2089.1,2088.8,5.128]
[1742826561024,4.78702,2089.0,2088.8,5.128]
[1742826561198,4.7868,2089.1,2088.8,5.128]
[1742826561597,3.0,2089.2,2088.9,4.7872]
[1742826561819,6.043557,2089.3,2088.9,4.7872]
[1742826561986,4.78652,2089.2,2088.9,4.7872]
[1742826562391,6.043557,2089.3,2088.9,4.78713]
[1742826562609,9.043617,2089.3,2088.9,4.78713]
[1742826563235,4.78652,2089.2,2088.9,4.78713]
[1742826563424,9.57315,2089.2,2088.8,11.20959]
[1742826563601,1.438548,2089.8,2089.1,1.2931]
[1742826563810,5.03909812,2090.1,2089.3,4.78629]
[1742826564011,4.785,2089.9,2089.5,4.78578]
[1742826564205,4.78489,2090.0,2089.6,9.91148]
[1742826564405,5.9617,2090.3,2089.7,1.2854]
[1742826564626,11.19270475,2090.4,2089.9,4.78477]
[1742826564828,4.78446,2090.1,2090.0,5.127]
[1742826565028,3.0,2090.1,2090.0,5.127]
[1742826565196,9.56874,2090.2,2090.0,5.127]
[1742826565396,0.956874,2090.1,2090.0,5.127]
[1742826566101,4.784,2090.3,2090.0,5.127]
[1742826566496,7.78433,2090.2,2090.0,5.127]
[1742826566709,4.78446,2090.1,2090.0,5.127]
[1742826566996,6.02146,2090.1,2090.0,5.127]
[1742826567330,4.78418,2090.3,2090.0,5.127]
[1742826567535,5.90346547,2090.3,2090.0,5.127]
[1742826567995,10.68767547,2090.3,2090.0,5.127]
[1742826568325,5.90346547,2090.3,2090.0,5.127]
[1742826568526,8.90338547,2090.3,2090.0,5.127]
[1742826568830,6.40885475,2090.4,2090.0,5.127]
[1742826569030,6.40885475,2090.4,2090.2,4.78414]
[1742826569229,6.40885475,2090.4,2090.1,5.95218]
[1742826569411,6.40885475,2090.4,2090.1,31.25418]
[1742826570503,6.40885475,2090.4,2090.1,26.4698]
[1742826570749,6.40885475,2090.4,2090.3,4.784]
[1742826570930,6.40885475,2090.4,2090.2,4.78407]
[1742826571130,4.78417,2090.3,2090.1,25.302]
[1742826571629,4.78403,2090.3,2090.1,25.302]
[1742826571830,11.83356022,2090.4,2090.1,25.302]
[1742826572331,5.15606495,2090.4,2090.1,25.302]
[1742826572533,9.94003495,2090.4,2090.1,30.08641]
[1742826572737,4.51517948,2090.4,2090.1,30.08641]
[1742826572904,9.29894948,2090.4,2090.1,30.08641]
[1742826573403,9.29894948,2090.4,2090.1,25.302]
[1742826574098,4.51517948,2090.4,2090.1,25.302]
[1742826574303,4.78417,2090.3,2090.1,25.302]
[1742826574509,4.78423,2090.2,2090.1,25.302]
[1742826574713,4.78423,2090.2,2090.1,30.394]
[1742826575608,7.78423,2090.2,2090.1,25.302]
[1742826575842,7.78423,2090.2,2090.1,30.388]
[1742826576141,9.66656974,2090.2,2090.1,30.388]
[1742826576341,3.0,2090.1,2089.5,0.3590112]
[1742826576542,4.78583,2089.5,2089.3,5.113]
[1742826576718,4.78583,2089.5,2089.4,5.113]
[1742826576906,4.78562,2089.6,2089.4,5.113]
[1742826577643,4.78493,2089.9,2089.4,9.89894]
[1742826577840,4.78525,2089.8,2089.4,9.8989]
[1742826578042,4.78528,2089.8,2089.4,5.113]
[1742826578338,4.78553,2089.7,2089.4,5.113]
[1742826579311,4.78569,2089.6,2089.4,5.113]
[1742826579512,4.78517,2089.8,2089.4,5.113]
[1742826579710,4.78539,2089.7,2089.4,5.113]
[1742826580342,4.78562,2089.6,2089.4,5.113]
[1742826580542,4.78539,2089.7,2089.4,9.89902]
[1742826581060,1.2233,2089.6,2088.7,6.3831]
[1742826581259,1.2233,2089.6,2088.8,4.78728]
[1742826581260,4.78653,2089.2,2088.8,4.78728]
[1742826581464,4.78637,2089.3,2088.9,4.7872]
[1742826581744,4.78609,2089.4,2089.1,6.07994]
[1742826581910,4.78588,2089.5,2089.1,6.07994]
[1742826582109,1.2233,2089.6,2089.1,6.07992]
[1742826582323,4.78611,2089.4,2089.1,6.07992]
[1742826584820,4.78611,2089.4,2089.2,5.113]
[1742826587353,4.78611,2089.4,2089.2,5.113]
[1742826588214,4.78611,2089.4,2089.3,5.093]
[1742826589129,4.78476,2090.0,2089.5,4.78565]
[1742826589321,4.78473,2090.0,2089.6,4.78539]
[1742826589521,4.78473,2090.0,2089.7,5.094]
[1742826590124,9.5696,2090.0,2089.7,5.094]
[1742826590328,4.78501,2089.9,2089.7,5.094]
[1742826590524,7.7846,2090.1,2089.7,5.094]
[1742826590769,3.0,2090.1,2089.8,4.785]
[1742826591013,4.78454,2090.1,2089.7,9.87935]
[1742826591267,4.78469,2090.0,2089.7,5.094]
[1742826591430,9.56917,2090.1,2089.7,5.094]
[1742826591625,10.86726824,2090.1,2089.7,5.094]
[1742826592134,4.78472,2090.0,2089.7,5.094]
[1742826592351,4.78512,2089.9,2089.7,5.094]
[1742826592560,4.78514,2089.8,2089.7,5.094]
[1742826592934,4.78498,2089.9,2089.7,5.094]
[1742826593140,5.87175782,2089.9,2089.7,5.094]
[1742826593353,1.08677782,2089.9,2089.7,5.094]
[1742826593552,4.7847,2090.0,2089.7,5.094]
[1742826594522,9.56959,2090.0,2089.7,5.094]
[1742826594851,4.7847,2090.0,2089.7,5.094]
[1742826595552,4.78504,2089.9,2089.7,5.094]
[1742826595769,7.78447,2090.1,2089.7,5.094]
[1742826595927,9.38252924,2090.1,2089.7,9.87922]
[1742826596471,4.7847,2090.0,2089.7,5.094]
[1742826597138,4.78491,2089.9,2089.7,5.094]
[1742826597463,4.78475,2090.0,2089.7,5.094]
[1742826599835,9.38251924,2090.1,2089.7,5.094]
[1742826600065,14.16716924,2090.1,2089.7,5.094]
[1742826600367,6.11257104,2090.0,2089.7,5.094]
[1742826600569,1.32783104,2090.0,2089.7,5.094]
[1742826600770,3.0,2090.1,2089.8,6.00213]
[1742826600940,15.32426948,2090.4,2089.9,4.78476]
[1742826601268,4.51517948,2090.4,2090.1,4.78434]
[1742826601445,9.29894948,2090.4,2090.2,5.03]
[1742826601646,4.784,2090.3,2089.8,6.00224]
[1742826601948,4.78455,2090.1,2089.9,5.03]
[1742826602147,10.49859795,2090.2,2089.9,5.03]
[1742826602346,4.78451,2090.1,2089.9,5.03]
[1742826603751,5.71415795,2090.2,2089.9,5.03]
[1742826604270,5.71415795,2090.2,2089.6,25.849]
[1742826604271,6.09,2090.1,2089.6,25.299]
[1742826604487,4.78525,2089.8,2089.6,25.299]
[1742826604768,4.78537,2089.7,2089.6,25.299]
[1742826604949,10.87537,2089.7,2089.6,30.318]
[1742826605150,13.87537,2089.7,2089.6,30.318]
[1742826605349,16.219925,2089.7,2089.6,30.318]
[1742826605674,17.436925,2089.7,2089.6,30.318]
[1742826606279,6.09,2089.7,2089.6,30.318]
[1742826607278,6.09,2089.9,2089.7,4.78521]
[1742826607584,10.87496,2089.9,2089.6,30.318]
[1742826608082,6.09,2089.9,2089.6,30.318]
[1742826608790,6.09,2089.9,2089.6,9.80459]
[1742826608992,1.2616,2089.6,2088.6,1.2686]
[1742826609281,1.2616,2089.6,2088.8,4.78727]
[1742826609282,3.0,2089.4,2088.8,4.78727]
[1742826609480,11.655021,2089.3,2088.7,4.78749]
[1742826609704,6.09,2089.3,2089.1,4.7867]
[1742826610009,6.09,2089.3,2089.2,5.145]
[1742826610010,10.87629,2089.3,2089.2,5.145]
[1742826610559,4.7872,2088.9,2088.8,25.298]
[1742826610795,4.7872,2088.9,2088.8,30.445]
[1742826612370,4.787,2089.0,2088.8,30.445]
[1742826612883,4.7872,2088.9,2088.8,30.445]
[1742826613308,5.74462,2088.9,2088.8,30.445]
[1742826613757,11.83462,2088.9,2088.8,30.445]
[1742826614594,14.83462,2088.9,2088.8,25.298]
[1742826615089,16.04532,2088.9,2088.8,30.421]
[1742826615475,16.04532,2088.9,2088.8,30.419]
[1742826615662,16.04532,2088.9,2088.8,30.418]
[1742826616072,16.04532,2088.9,2088.8,5.123]
[1742826616275,16.04532,2088.9,2088.2,25.304]
[1742826616276,4.7885,2088.4,2088.2,25.304]
[1742826616510,6.09,2088.3,2088.2,25.304]
[1742826616676,6.09,2088.3,2088.2,30.425]
[1742826617007,10.87858,2088.3,2088.2,30.425]
[1742826617172,10.87858,2088.3,2088.2,25.304]
[1742826617371,6.09,2088.3,2088.2,25.304]
[1742826617577,6.09,2088.3,2088.2,30.422]
[1742826618605,6.09,2088.4,2088.3,1.2342]
[1742826618910,6.09,2088.4,2088.3,11.13878]
[1742826619110,6.09,2088.4,2088.3,11.68878]
[1742826619424,6.09,2089.1,2088.9,6.00788]
[1742826619648,6.09,2089.2,2089.0,5.67]
[1742826619909,6.09,2089.5,2089.2,5.33636]
[1742826620081,6.09,2089.5,2089.2,4.78636]
[1742826620281,6.09,2089.5,2089.3,4.78621]
[1742826620497,6.09,2089.5,2089.2,4.78636]
[1742826620498,6.09,2089.8,2089.5,4.78582]
[1742826620698,6.09,2089.9,2089.5,4.78582]
[1742826620923,8.10784687,2090.0,2089.5,5.33564]
[1742826621106,8.10784687,2090.0,2089.5,5.33577]
[1742826621429,2.01784687,2090.0,2089.9,4.78491]
[1742826621595,6.09,2090.2,2089.9,11.10581]
[1742826621775,6.09,2090.2,2090.0,25.306]
[1742826621983,6.09,2090.3,2090.0,30.09068]
[1742826622326,10.60517948,2090.4,2090.1,4.78445]
[1742826622813,4.78422,2090.3,2090.0,25.306]
[1742826622978,4.78446,2090.1,2090.0,25.306]
[1742826623181,4.78446,2090.1,2090.0,30.425]
[1742826623584,5.99203,2090.2,2090.0,30.425]
[1742826623909,4.78446,2090.1,2090.0,30.425]
[1742826624089,6.162109,2090.1,2090.0,30.425]
[1742826624813,1.377649,2090.1,2090.0,30.425]
[1742826625215,6.162109,2090.1,2090.0,30.425]
[1742826625520,15.252109,2090.1,2090.0,25.306]
[1742826625885,15.252109,2090.1,2090.0,5.108]
[1742826626086,4.78551,2089.7,2089.4,25.301]
[1742826626286,4.78583,2089.5,2089.4,25.301]
[1742826626503,13.87583,2089.5,2089.4,30.407]
[1742826626698,13.87583,2089.5,2089.4,25.301]
[1742826626999,4.78714,2089.0,2088.8,25.301]
[1742826627194,4.7872,2088.9,2088.8,25.301]
[1742826627401,4.78787,2088.7,2088.2,25.301]
[1742826627600,6.09,2088.6,2088.3,5.111]
[1742826627799,4.7883,2088.5,2088.3,5.111]
[1742826628391,4.78835,2088.4,2088.3,5.111]
[1742826628597,4.78858,2088.3,2088.2,25.301]
[1742826628812,10.87858,2088.3,2088.2,30.41]
[1742826629397,6.09,2088.3,2088.2,30.41]
[1742826630322,6.09,2088.3,2088.2,35.74881]
[1742826630620,6.09,2089.0,2088.5,4.7881]
[1742826630954,12.084977,2089.0,2088.6,5.107]
[1742826631221,7.297907,2089.0,2088.6,5.107]
[1742826631393,4.78764,2088.8,2088.6,5.107]
[1742826631717,4.78766,2088.7,2088.6,5.107]
[1742826631920,4.78764,2088.8,2088.6,5.107]
[1742826632091,11.5625597,2088.8,2088.6,5.107]
[1742826632292,7.78766,2088.7,2088.2,25.301]
[1742826632520,4.78799,2088.6,2088.3,5.107]
[1742826632899,4.78799,2088.6,2088.4,5.104]
[1742826632900,4.78814,2088.5,2088.4,5.104]
[1742826633299,10.87814,2088.5,2088.4,5.104]
[1742826633634,6.09,2088.5,2088.4,5.104]
[1742826634534,6.09,2088.7,2088.4,5.104]
[1742826634716,7.477728,2088.7,2088.4,5.104]
[1742826635494,7.477728,2088.7,2088.5,5.098]
[1742826636096,12.265408,2088.7,2088.5,5.098]
[1742826636515,7.477728,2088.7,2088.5,5.098]
[1742826637024,12.265418,2088.7,2088.5,5.098]
[1742826637219,6.7931748,2088.6,2088.5,5.098]
[1742826637430,4.78813,2088.5,2088.2,25.301]
[1742826637633,4.78858,2088.3,2088.2,25.301]
[1742826637926,4.78858,2088.3,2088.2,30.395]
[1742826638107,10.87853,2088.4,2088.2,30.395]
[1742826638304,6.004953,2088.3,2088.2,25.301]
[1742826638499,6.004953,2088.3,2088.2,30.391]
[1742826639015,1.216373,2088.3,2088.2,30.391]
[1742826639343,6.09,2088.4,2088.2,30.391]
[1742826640300,10.87839,2088.4,2088.2,25.301]
[1742826640516,4.78858,2088.3,2088.2,25.301]
[1742826640822,7.78858,2088.3,2088.2,30.388]
[1742826641527,8.98558,2088.3,2088.2,30.388]
[1742826641724,11.45079,2088.3,2088.2,30.388]
[1742826641928,3.66221,2088.3,2088.2,5.087]
[1742826642109,5.98558,2088.3,2088.2,5.087]
[1742826642498,1.197,2088.3,2088.2,5.087]
[1742826642722,10.87839,2088.4,2088.2,5.087]
[1742826643118,6.09,2088.3,2088.2,5.087]
[1742826644601,10.87858,2088.3,2088.2,5.087]
[1742826644797,6.09,2088.3,2088.1,4.79903]
[1742826645003,6.09,2088.3,2088.2,5.075]
[1742826646511,6.09,2088.3,2088.2,5.074]
[1742826646920,6.09,2088.3,2088.1,0.01]
[1742826647248,6.09,2088.3,2088.2,5.073]
[1742826647432,7.656648,2088.3,2088.2,5.073]
[1742826647752,12.445228,2088.3,2088.2,5.073]
[1742826648552,7.656648,2088.3,2088.2,5.073]
[1742826648719,6.09,2088.3,2088.2,5.073]
[1742826649125,6.05931,2088.6,2088.2,5.073]
[1742826649126,6.09,2088.5,2088.2,5.073]
[1742826649438,10.8782,2088.5,2088.2,5.073]
[1742826649848,6.09,2088.5,2088.2,9.8618]
[1742826650050,6.09,2088.5,2088.2,5.073]
[1742826650429,7.783709,2088.5,2088.2,5.073]
[1742826651346,12.571869,2088.5,2088.2,5.073]
[1742826651553,4.78846,2088.4,2088.3,5.053]
[1742826651848,4.78861,2088.3,2088.1,0.01]
[1742826652150,5.267671,2088.2,2088.1,0.01]
[1742826652355,11.357671,2088.2,2088.1,0.01]
[1742826652650,11.357671,2088.2,2088.1,5.063]
[1742826653632,7.779061,2088.2,2088.1,5.063]
[1742826654138,12.567871,2088.2,2088.1,5.063]
[1742826654341,5.96907,2088.0,2087.3,4.79083]
[1742826654541,5.96907,2088.0,2087.4,6.3639]
[1742826654542,8.96923,2088.0,2087.4,6.3639]
[1742826654751,4.1798,2088.0,2087.5,5.073]
[1742826654957,1.1798,2088.0,2087.6,4.79015]
[1742826655260,12.65378,2088.0,2087.5,5.073]
[1742826655433,4.78953,2087.9,2087.5,5.073]
[1742826655634,3.07504,2088.0,2087.5,5.073]
[1742826655828,1.1798,2088.0,2087.7,4.78985]
[1742826656041,6.09,2088.0,2087.8,4.78957]
[1742826656225,6.09,2088.2,2087.9,9.85636]
[1742826656425,6.09,2088.2,2088.0,4.78921]
[1742826656820,6.09,2088.2,2088.0,4.78912]
[1742826657021,6.09,2088.2,2087.9,35.17347]
[1742826657246,6.09,2088.2,2088.0,4.78921]
[1742826657438,6.09,2088.2,2087.9,35.17349]
[1742826657638,6.09,2088.2,2088.0,5.33915]
[1742826657852,6.09,2088.2,2087.9,30.384]
[1742826658051,11.48789,2088.2,2088.0,5.058]
[1742826658256,11.48789,2088.2,2087.9,25.317]
[1742826658682,6.05352,2088.1,2088.0,5.06]
[1742826660274,4.7899,2087.8,2087.3,26.6109]
[1742826660480,12.14352,2088.1,2087.3,26.6109]
[1742826660481,4.78965,2087.9,2087.4,5.055]
[1742826660777,4.78965,2087.9,2086.9,4.79168]
[1742826660778,1.2789,2087.6,2086.9,4.79168]
[1742826660977,6.09,2087.5,2087.0,5.052]
[1742826661173,10.88052,2087.5,2087.0,5.052]
[1742826661377,12.096372,2087.5,2087.0,5.052]
[1742826661572,16.886912,2087.5,2087.0,9.84351]
[1742826661772,12.096372,2087.5,2087.0,5.052]
[1742826661973,6.09,2087.5,2087.1,4.7912]
[1742826662179,6.09,2087.5,2087.1,4.79133]
[1742826662386,6.09,2087.5,2087.4,5.34064]
[1742826662591,6.09,2087.9,2087.6,1.2464]
[1742826662751,6.09,2087.9,2087.4,6.3195]
[1742826662959,1.2094,2087.8,2086.9,1.2665]
[1742826663192,6.09,2087.7,2087.4,4.79057]
[1742826663366,6.09,2087.7,2087.5,5.058]
[1742826663677,6.09,2087.8,2087.7,4.78996]
[1742826664059,6.09,2087.8,2087.6,4.79018]
[1742826664259,6.09,2087.8,2087.6,4.79013]
[1742826664665,6.09,2087.8,2087.7,5.33996]